bitfinex/quotes_BTCUSD_20230117
["timestamp","ask_amount","ask_price","bid_price","bid_amount"]
[1673915061277,0.14100132,21245.0,21241.0,0.470771]
[1673915061534,0.14100132,21245.0,21240.0,0.61113247]
[1673915061535,0.82320231,21245.0,21240.0,0.61113247]
[1673915062043,0.82320231,21245.0,21240.0,0.470791]
[1673915062559,0.14100132,21244.0,21240.0,1.13232595]
[1673915062816,0.26000132,21245.0,21240.0,1.27266742]
[1673915063095,0.26000132,21245.0,21241.0,0.320103]
[1673915063340,0.26000132,21245.0,21242.0,0.320103]
[1673915063597,0.119,21245.0,21241.0,0.66150295]
[1673915063863,0.119,21245.0,21241.0,0.470777]
[1673915064125,0.89827931,21246.0,21241.0,0.470777]
[1673915064411,0.89827931,21246.0,21241.0,0.66150295]
[1673915064888,0.14100132,21245.0,21241.0,0.66150295]
[1673915065148,0.26000132,21245.0,21241.0,0.470777]
[1673915065399,0.14100132,21245.0,21241.0,0.470777]
[1673915065650,0.35250331,21245.0,21241.0,0.470777]
[1673915066370,0.0754,21243.0,21239.0,0.47834222]
[1673915066870,0.21640132,21243.0,21239.0,0.47834222]
[1673915067375,0.33640132,21243.0,21239.0,0.47834222]
[1673915068133,0.26100132,21243.0,21239.0,0.66906817]
[1673915068659,0.26100132,21243.0,21239.0,0.47834222]
[1673915068928,0.58219445,21243.0,21239.0,0.47834222]
[1673915069466,0.79369644,21243.0,21239.0,0.00753222]
[1673915069697,0.21630132,21242.0,21239.0,0.00753222]
[1673915069945,0.0753,21242.0,21239.0,0.00753222]
[1673915070202,0.546066,21242.0,21239.0,0.00753222]
[1673915070759,0.470766,21242.0,21239.0,0.00753222]
[1673915070990,0.76223564,21242.0,21239.0,0.00753222]
[1673915072078,0.88223564,21242.0,21239.0,0.00753222]
[1673915072507,0.73176732,21242.0,21239.0,0.00753222]
[1673915073495,1.20253232,21242.0,21239.0,0.00753222]
[1673915073746,1.68012985,21242.0,21239.0,0.00753222]
[1673915074235,1.68002297,21242.0,21239.0,0.00753222]
[1673915074973,0.15,21241.0,21239.0,0.00753222]
[1673915075218,0.790912,21240.0,21239.0,0.00753222]
[1673915075736,0.866312,21240.0,21239.0,0.00753222]
[1673915076015,1.017018,21240.0,21239.0,0.00753222]
[1673915076271,1.337121,21240.0,21239.0,0.00753222]
[1673915076531,1.017018,21240.0,21239.0,0.00753222]
[1673915076787,1.137018,21240.0,21239.0,0.00753222]
[1673915077079,1.457121,21240.0,21239.0,0.00753222]
[1673915077558,1.85899977,21240.0,21239.0,0.00753222]
[1673915077812,1.337121,21240.0,21239.0,0.00753222]
[1673915078065,1.137018,21240.0,21239.0,0.00753222]
[1673915078584,1.457121,21240.0,21239.0,0.00753222]
[1673915079100,0.590809,21240.0,21239.0,0.00753222]
[1673915080198,1.061618,21240.0,21239.0,0.00753222]
[1673915080452,1.381721,21240.0,21239.0,0.00753222]
[1673915081203,0.910912,21240.0,21239.0,0.00753222]
[1673915081204,0.12,21240.0,21239.0,0.00753222]
[1673915081721,0.12,21240.0,21239.0,0.32763522]
[1673915082301,0.12,21240.0,21239.0,0.00753222]
[1673915083285,0.665709,21240.0,21239.0,0.00753222]
[1673915083548,0.985812,21240.0,21239.0,0.00753222]
[1673915083808,1.456621,21240.0,21239.0,0.00753222]
[1673915085889,2.44480047,21240.0,21239.0,0.00753222]
[1673915086166,2.67380152,21240.0,21239.0,0.00753222]
[1673915086477,3.06154729,21240.0,21239.0,0.00753222]
[1673915086760,2.37380152,21240.0,21239.0,0.00753222]
[1673915087017,2.44357907,21240.0,21239.0,0.00753222]
[1673915087282,2.32357907,21240.0,21239.0,0.00753222]
[1673915087807,2.46489981,21240.0,21239.0,0.00753222]
[1673915087808,2.58489981,21240.0,21239.0,0.00753222]
[1673915088065,2.58489981,21240.0,21239.0,0.00746702]
[1673915088066,2.71029268,21240.0,21239.0,0.00746702]
[1673915088321,3.21802657,21240.0,21239.0,0.00746702]
[1673915088587,3.06153541,21240.0,21239.0,0.00746702]
[1673915088877,2.94153541,21240.0,21239.0,0.00746702]
[1673915089128,2.88474011,21240.0,21239.0,0.00746702]
[1673915089909,2.58474011,21240.0,21239.0,0.00746702]
[1673915090172,2.44335739,21240.0,21239.0,0.00746702]
[1673915090439,1.68054132,21240.0,21239.0,0.00746702]
[1673915090696,1.456521,21240.0,21239.0,0.00746702]
[1673915090967,1.381721,21240.0,21239.0,0.00746702]
[1673915091789,1.061618,21240.0,21239.0,0.00746702]
[1673915092052,0.590809,21240.0,21239.0,0.00746702]
[1673915093917,1.71233729,21240.0,21239.0,0.00746702]
[1673915094222,1.92835761,21240.0,21239.0,0.00746702]
[1673915094483,2.33030662,21240.0,21239.0,0.00746702]
[1673915094739,2.33880662,21240.0,21239.0,0.00746702]
[1673915095257,2.59452892,21240.0,21239.0,0.00746702]
[1673915096028,2.29452892,21240.0,21239.0,0.00746702]
[1673915096302,1.89257991,21240.0,21239.0,0.00746702]
[1673915096561,1.68164132,21240.0,21239.0,0.00746702]
[1673915097109,1.89257991,21240.0,21239.0,0.00746702]
[1673915097360,1.68164132,21240.0,21239.0,0.00746702]
[1673915097863,1.541021,21240.0,21239.0,0.00746702]
[1673915098217,0.12,21240.0,21239.0,0.19819297]
[1673915098475,0.12,21240.0,21239.0,0.00746702]
[1673915099271,0.744049,21240.0,21239.0,0.00746702]
[1673915099533,1.534961,21240.0,21239.0,0.00746702]
[1673915099794,1.88651991,21240.0,21239.0,0.00746702]
[1673915100574,1.52234132,21240.0,21239.0,0.00746702]
[1673915101008,1.73327991,21240.0,21239.0,0.00746702]
[1673915101272,1.87466263,21240.0,21239.0,0.00746702]
[1673915101782,1.94986263,21240.0,21239.0,0.00746702]
[1673915103291,1.73892404,21240.0,21239.0,0.00746702]
[1673915103546,2.12615759,21240.0,21239.0,0.00746702]
[1673915103800,1.77482766,21240.0,21239.0,0.00746702]
[1673915104048,2.12615759,21240.0,21239.0,0.00746702]
[1673915104571,2.12614141,21240.0,21239.0,0.00746702]
[1673915105091,2.12599248,21240.0,21239.0,0.01884582]
[1673915105349,1.95015705,21240.0,21239.0,0.01884582]
[1673915105875,1.27299994,21240.0,21239.0,0.01884582]
[1673915106125,1.78132087,21240.0,21239.0,0.01884582]
[1673915106374,1.89004193,21240.0,21239.0,0.01884582]
[1673915106907,1.56993893,21240.0,21239.0,0.01884582]
[1673915107694,1.60620905,21240.0,21239.0,0.01884582]
[1673915107949,1.95753898,21240.0,21239.0,0.01884582]
[1673915108208,2.35284198,21240.0,21239.0,0.01884582]
[1673915108983,2.35284198,21240.0,21239.0,0.01875973]
[1673915109239,2.07098787,21240.0,21239.0,0.01875973]
[1673915110544,1.84452105,21240.0,21239.0,0.01875973]
[1673915110796,1.52441805,21240.0,21239.0,0.01875973]
[1673915111045,1.84452105,21240.0,21239.0,0.01875973]
[1673915111800,1.83452105,21240.0,21239.0,0.01875973]
[1673915112056,1.51441805,21240.0,21239.0,0.01875973]
[1673915112314,1.40568535,21240.0,21239.0,0.01875973]
[1673915112595,1.05308812,21240.0,21239.0,0.01875973]
[1673915113359,1.14408812,21240.0,21239.0,0.01875973]
[1673915114140,1.49675688,21240.0,21239.0,0.01875973]
[1673915114396,1.14408812,21240.0,21239.0,0.01875973]
[1673915115159,1.40952984,21240.0,21239.0,0.01875973]
[1673915115414,1.72963284,21240.0,21239.0,0.01875973]
[1673915115927,1.46419112,21240.0,21239.0,0.01875973]
[1673915116705,1.83889112,21240.0,21239.0,0.01875973]
[1673915116961,2.26071419,21240.0,21239.0,0.01875973]
[1673915117213,2.24112424,21240.0,21239.0,0.01875973]
[1673915117716,1.83889112,21240.0,21239.0,0.01875973]
[1673915118231,2.64404825,21240.0,21239.0,0.01875973]
[1673915118509,2.65254825,21240.0,21239.0,0.01875973]
[1673915118873,3.12412494,21240.0,21239.0,0.01675888]
[1673915121598,2.81204753,21240.0,21239.0,0.01675888]
[1673915121830,2.65254825,21240.0,21239.0,0.01675888]
[1673915122088,3.12863644,21240.0,21239.0,0.01675888]
[1673915123651,3.12863644,21240.0,21239.0,8.88e-06]
[1673915124123,3.57554922,21240.0,21238.0,0.0086766]
[1673915124384,2.2078671,21239.0,21236.0,0.00826767]
[1673915124645,0.35518,21237.0,21236.0,0.00826767]
[1673915124897,0.35518,21237.0,21235.0,0.00826767]
[1673915124898,2.80607585,21237.0,21235.0,1.534e-05]
[1673915125154,2.0184101,21236.0,21234.0,0.01179982]
[1673915125419,2.91506493,21235.0,21227.0,0.01885]
[1673915125678,0.20468,21232.0,21229.0,0.00965298]
[1673915125938,0.4759565,21233.0,21229.0,0.00965298]
[1673915125939,2.43370306,21231.0,21229.0,0.00965298]
[1673915126198,2.35157294,21231.0,21229.0,0.00965298]
[1673915126718,2.22599836,21231.0,21229.0,0.00965298]
[1673915126720,2.08517103,21231.0,21230.0,0.19946255]
[1673915126977,2.08517103,21231.0,21230.0,0.0087366]
[1673915126978,0.942018,21231.0,21230.0,0.0087366]
[1673915127248,0.471009,21231.0,21230.0,0.0087366]
[1673915127496,0.471009,21231.0,21230.0,0.0821366]
[1673915127784,0.470966,21233.0,21231.0,0.0754]
[1673915128021,0.82296103,21235.0,21232.0,0.394803]
[1673915128274,0.611734,21235.0,21233.0,0.320103]
[1673915128531,0.35204103,21236.0,21233.0,0.19072595]
[1673915129094,0.140814,21236.0,21233.0,0.19072595]
[1673915129325,6e-05,21234.0,21232.0,0.0747]
[1673915129835,6e-05,21234.0,21233.0,0.320103]
[1673915130090,6e-05,21234.0,21233.0,0.470503]
[1673915130607,6e-05,21234.0,21233.0,0.941468]
[1673915130870,6e-05,21234.0,21233.0,1.841468]
[1673915131137,0.10206,21234.0,21233.0,1.841468]
[1673915131404,0.10206,21234.0,21233.0,2.03219395]
[1673915131694,0.10206,21234.0,21233.0,1.841468]
[1673915131695,0.102,21234.0,21233.0,1.841468]
[1673915131956,0.140814,21240.0,21233.0,1.841468]
[1673915132226,0.35204103,21241.0,21237.0,0.0747]
[1673915132479,0.140814,21240.0,21238.0,0.51082895]
[1673915132736,0.140814,21240.0,21237.0,0.26542595]
[1673915133250,0.16330321,21240.0,21237.0,0.0747]
[1673915134339,0.24830321,21240.0,21237.0,0.0757]
[1673915134794,0.10748921,21240.0,21239.0,0.0749]
[1673915135049,0.10748921,21240.0,21239.0,0.395003]
[1673915135596,0.02248921,21240.0,21239.0,0.395003]
[1673915135853,0.10048921,21240.0,21239.0,0.866834]
[1673915136625,0.10048921,21240.0,21239.0,1.337665]
[1673915136916,0.02248921,21240.0,21239.0,1.336665]
[1673915137176,0.10848921,21240.0,21239.0,1.337665]
[1673915137956,0.10848921,21240.0,21239.0,2.312265]
[1673915138235,0.10848921,21240.0,21239.0,2.599565]
[1673915139024,0.10848921,21240.0,21239.0,3.07676669]
[1673915139796,0.10848921,21240.0,21239.0,3.07576669]
[1673915139801,0.02248921,21240.0,21239.0,3.07576669]
[1673915140055,0.10148921,21240.0,21239.0,3.07676669]
[1673915140317,0.10148921,21240.0,21239.0,3.07576669]
[1673915140570,0.10148921,21240.0,21239.0,3.07676669]
[1673915142140,0.10148921,21240.0,21239.0,2.013165]
[1673915143780,0.10148921,21240.0,21239.0,2.313165]
[1673915145374,0.10148921,21240.0,21239.0,1.713165]
[1673915148322,0.15,21247.0,21240.0,0.13626466]
[1673915148585,0.15,21248.0,21246.0,0.0754]
[1673915149066,0.48096967,21249.0,21247.0,0.51082895]
[1673915149338,0.48096967,21249.0,21247.0,0.19072595]
[1673915149845,0.007,21248.0,21246.0,0.0834]
[1673915150125,0.01035367,21249.0,21246.0,0.0754]
[1673915150356,0.01035367,21249.0,21247.0,0.403003]
[1673915150357,0.01735367,21249.0,21247.0,0.403003]
[1673915150625,0.01035367,21249.0,21248.0,0.320103]
[1673915150895,0.01735367,21249.0,21248.0,0.320103]
[1673915151460,0.01735367,21249.0,21248.0,0.866135]
[1673915151978,0.01035367,21249.0,21248.0,0.866135]
[1673915152244,0.01035367,21249.0,21248.0,0.320103]
[1673915153319,0.01735367,21249.0,21248.0,0.328103]
[1673915153584,0.01735367,21249.0,21248.0,0.008]
[1673915154904,0.01735367,21249.0,21248.0,0.476603]
[1673915155168,0.01735367,21249.0,21248.0,0.947235]
[1673915155758,0.01735367,21249.0,21248.0,1.417867]
[1673915156278,0.01735367,21249.0,21248.0,0.403203]
[1673915156538,0.01735367,21249.0,21248.0,0.328103]
[1673915158568,0.01735367,21249.0,21248.0,0.798735]
[1673915159620,0.01735367,21249.0,21248.0,1.269367]
[1673915160413,0.01735367,21249.0,21248.0,1.344767]
[1673915160977,0.01735367,21249.0,21248.0,1.644767]
[1673915161233,0.01735367,21249.0,21248.0,2.19706869]
[1673915161506,0.01058579,21251.0,21248.0,2.12196869]
[1673915161759,0.01058579,21251.0,21250.0,0.0754]
[1673915162031,0.01058579,21251.0,21250.0,1.807267]
[1673915162298,0.01058579,21251.0,21250.0,2.107267]
[1673915162837,0.02858579,21251.0,21250.0,2.114267]
[1673915165182,0.05255064,21251.0,21250.0,2.114267]
[1673915166027,0.05255064,21251.0,21250.0,1.814267]
[1673915168093,0.05255064,21251.0,21250.0,1.738867]
[1673915168630,0.05255064,21251.0,21250.0,1.268279]
[1673915169677,0.05255064,21251.0,21250.0,1.568279]
[1673915170210,0.05255064,21251.0,21250.0,2.50979285]
[1673915170716,0.05255064,21251.0,21250.0,2.58479285]
[1673915173028,0.05255064,21251.0,21250.0,2.28479285]
[1673915175655,0.05255064,21251.0,21250.0,2.58479285]
[1673915179834,0.05255064,21251.0,21250.0,3.06199454]
[1673915182180,0.05247792,21251.0,21250.0,3.06199454]
[1673915185829,0.05247792,21251.0,21250.0,2.58479285]
[1673915186092,0.05247792,21251.0,21250.0,2.20979285]
[1673915187134,0.05247792,21251.0,21250.0,1.88968985]
[1673915188452,0.05247792,21251.0,21250.0,0.948176]
[1673915188969,0.05247792,21251.0,21250.0,1.268279]
[1673915189235,0.05247792,21251.0,21250.0,2.20984371]
[1673915189505,0.05247792,21251.0,21250.0,1.268279]
[1673915189757,0.05247792,21251.0,21250.0,0.948176]
[1673915190021,0.05247792,21251.0,21250.0,2.20984844]
[1673915190624,0.05247792,21251.0,21250.0,1.268279]
[1673915191183,0.05247792,21251.0,21250.0,2.20984019]
[1673915191468,0.05247792,21251.0,21250.0,2.50984019]
[1673915191713,1e-08,21251.0,21250.0,2.50984019]
[1673915195391,1e-08,21251.0,21250.0,2.65018166]
[1673915196456,1e-08,21251.0,21250.0,2.50984019]
[1673915197271,1e-08,21251.0,21250.0,2.65018166]
[1673915197811,1e-08,21251.0,21250.0,2.50984019]
[1673915198326,1e-08,21251.0,21250.0,2.65018166]
[1673915199746,1e-08,21251.0,21250.0,3.36159863]
[1673915200011,1e-08,21251.0,21250.0,4.33167035]
[1673915200273,1e-08,21251.0,21250.0,4.73092433]
[1673915200789,1e-08,21251.0,21250.0,4.19404632]
[1673915201601,1e-08,21251.0,21250.0,2.50984019]
[1673915203411,1e-08,21251.0,21250.0,2.20984019]
[1673915203684,1e-08,21251.0,21250.0,1.268279]
[1673915203995,1e-08,21251.0,21250.0,0.007]
[1673915205017,0.14081401,21251.0,21250.0,0.007]
[1673915205526,1e-08,21251.0,21250.0,0.007]
[1673915205779,0.14081401,21251.0,21250.0,0.007]
[1673915206041,0.14081401,21251.0,21250.0,0.477588]
[1673915206300,1e-08,21251.0,21250.0,0.477588]
[1673915206577,1e-08,21251.0,21250.0,1.568279]
[1673915207884,1e-08,21251.0,21250.0,1.268279]
[1673915208368,1e-08,21251.0,21250.0,0.948176]
[1673915208622,1e-08,21251.0,21250.0,0.477588]
[1673915209142,0.14081401,21251.0,21250.0,0.477588]
[1673915211458,1e-08,21251.0,21250.0,0.007]
[1673915211713,0.14081401,21251.0,21250.0,0.007]
[1673915211970,1e-08,21251.0,21250.0,0.007]
[1673915212236,0.14081401,21251.0,21250.0,0.007]
[1673915213329,1e-08,21251.0,21250.0,0.007]
[1673915213544,1e-08,21251.0,21250.0,0.477588]
[1673915213848,1e-08,21251.0,21250.0,0.797691]
[1673915215153,0.14081401,21251.0,21250.0,0.00691929]
[1673915215416,0.13581401,21251.0,21250.0,0.00691929]
[1673915216203,0.34704104,21251.0,21250.0,0.00691929]
[1673915217312,0.13581401,21251.0,21250.0,0.00691929]
[1673915217824,0.71983377,21253.0,21250.0,0.00691929]
[1673915217825,0.57899684,21253.0,21250.0,0.00691929]
[1673915218090,0.21122703,21252.0,21250.0,0.00691929]
[1673915218533,0.49286836,21252.0,21250.0,0.00691929]
[1673915219063,0.21122703,21252.0,21250.0,0.00691929]
[1673915219325,0.395503,21251.0,21247.0,0.470634]
[1673915219647,0.28657742,21250.0,21247.0,0.470634]
[1673915219879,0.320103,21249.0,21247.0,0.470634]
[1673915220133,0.56821875,21250.0,21246.0,0.470656]
[1673915220403,0.28657742,21250.0,21246.0,0.470656]
[1673915220675,0.28657742,21250.0,21247.0,0.008]
[1673915220931,0.0752,21250.0,21246.0,0.470656]
[1673915221194,0.56921875,21250.0,21246.0,0.478656]
[1673915221716,0.21137742,21249.0,21246.0,0.008]
[1673915222256,0.49301875,21249.0,21245.0,0.94136]
[1673915222563,0.49301875,21249.0,21247.0,0.008]
[1673915222827,0.53998042,21248.0,21243.0,0.470725]
[1673915223087,0.53998042,21248.0,21246.0,0.008]
[1673915223088,0.69051642,21248.0,21246.0,0.008]
[1673915223352,0.0754,21247.0,21243.0,0.66145095]
[1673915223646,0.479139,21248.0,21245.0,0.001]
[1673915223962,0.554539,21248.0,21243.0,0.470725]
[1673915224225,0.084,21248.0,21245.0,0.941394]
[1673915224486,1.59971775,21250.0,21245.0,0.470698]
[1673915224759,1.59971775,21250.0,21246.0,0.19072595]
[1673915224760,0.084,21247.0,21246.0,0.19072595]
[1673915225066,2.33676175,21250.0,21245.0,0.470698]
[1673915225339,0.14080984,21249.0,21245.0,0.66142395]
[1673915225597,0.14080984,21249.0,21245.0,0.470698]
[1673915225598,0.084,21248.0,21245.0,0.470698]
[1673915226130,0.82280126,21249.0,21245.0,0.470698]
[1673915226421,0.084,21247.0,21246.0,0.001]
[1673915227209,0.82280126,21249.0,21245.0,0.470698]
[1673915227481,0.22480984,21248.0,21245.0,0.66242395]
[1673915227771,0.14080984,21248.0,21245.0,0.470698]
[1673915228034,0.084,21247.0,21244.0,0.4707]
[1673915228349,0.21590984,21249.0,21244.0,0.941403]
[1673915228598,0.1591,21249.0,21245.0,0.321103]
[1673915228860,0.0751,21249.0,21245.0,1.13310795]
[1673915229149,0.084,21248.0,21245.0,1.13310795]
[1673915229423,0.0751,21249.0,21245.0,1.13310795]
[1673915229424,0.0751,21249.0,21245.0,0.941382]
[1673915229700,0.1591,21249.0,21245.0,1.13210795]
[1673915229950,0.1591,21249.0,21245.0,0.941382]
[1673915230204,0.1591,21249.0,21245.0,1.13210795]
[1673915230463,0.0751,21249.0,21245.0,0.941382]
[1673915230726,0.1591,21249.0,21245.0,0.942382]
[1673915231227,0.084,21249.0,21245.0,0.942382]
[1673915232263,0.084,21249.0,21246.0,0.770103]
[1673915232523,0.084,21249.0,21248.0,0.0747]
[1673915232786,0.084,21249.0,21248.0,0.320103]
[1673915233043,0.084,21249.0,21245.0,0.471698]
[1673915233323,0.14080984,21251.0,21243.0,1.077222]
[1673915233324,0.14080984,21250.0,21243.0,1.077222]
[1673915233560,0.1451,21249.0,21248.0,0.002]
[1673915233821,0.21590984,21249.0,21243.0,1.26794795]
[1673915234080,0.21590984,21249.0,21245.0,0.002]
[1673915234081,0.0749,21247.0,21245.0,0.002]
[1673915234405,0.0749,21247.0,21243.0,0.66144795]
[1673915234593,0.0749,21247.0,21243.0,0.470722]
[1673915235128,0.1449,21247.0,21245.0,0.002]
[1673915236182,1.29939984,21250.0,21245.0,0.941388]
[1673915236435,1.15859,21250.0,21246.0,0.51082895]
[1673915236693,1.15859,21250.0,21246.0,0.19072595]
[1673915236955,0.0751,21250.0,21246.0,0.96139695]
[1673915237245,1.47556526,21251.0,21246.0,0.96139695]
[1673915237506,0.077,21250.0,21247.0,0.19072595]
[1673915237800,1.26418784,21251.0,21246.0,0.66139695]
[1673915238065,1.26418784,21251.0,21246.0,0.66239695]
[1673915238066,0.077,21250.0,21246.0,0.66239695]
[1673915238352,0.077,21250.0,21246.0,0.471671]
[1673915238881,0.077,21250.0,21246.0,0.66239695]
[1673915239146,0.14080984,21252.0,21247.0,0.620103]
[1673915239402,0.077,21251.0,21247.0,0.66136895]
[1673915239708,0.35218726,21251.0,21247.0,0.470643]
[1673915240450,0.35218726,21251.0,21247.0,0.471643]
[1673915240710,0.35218726,21251.0,21247.0,0.66136895]
[1673915240962,0.42918726,21251.0,21247.0,0.66236895]
[1673915241234,0.21780984,21251.0,21247.0,0.66236895]
[1673915241489,0.21780984,21251.0,21248.0,0.694803]
[1673915241490,0.077,21251.0,21248.0,0.694803]
[1673915241735,0.077,21251.0,21249.0,0.790713]
[1673915241999,0.077,21251.0,21250.0,0.320103]
[1673915242293,0.077,21251.0,21250.0,0.790691]
[1673915242558,0.14080984,21252.0,21250.0,0.790691]
[1673915242777,0.14080984,21252.0,21251.0,0.320103]
[1673915243272,0.14080984,21252.0,21250.0,0.941159]
[1673915243546,0.14080984,21252.0,21250.0,0.470567]
[1673915243780,0.14080984,21252.0,21251.0,0.322103]
[1673915244031,0.21180984,21252.0,21251.0,0.322103]
[1673915244852,0.14080984,21252.0,21250.0,0.470567]
[1673915245052,0.42318726,21252.0,21250.0,0.002]
[1673915245297,0.14080984,21252.0,21249.0,0.470588]
[1673915245550,0.21180984,21252.0,21251.0,0.002]
[1673915245849,0.43851574,21253.0,21249.0,0.470588]
[1673915246100,0.14080984,21252.0,21249.0,0.470588]
[1673915246378,0.21180984,21252.0,21250.0,0.322103]
[1673915246658,0.2223059,21253.0,21252.0,0.15919016]
[1673915246924,0.08192848,21253.0,21252.0,0.15919016]
[1673915247709,0.2223059,21253.0,21252.0,0.15919016]
[1673915247965,1.04986823,21253.0,21252.0,0.15919016]
[1673915248217,0.87714934,21253.0,21252.0,0.15919016]
[1673915248486,2.0908373,21253.0,21252.0,0.16119016]
[1673915249003,2.0858373,21253.0,21252.0,0.16119016]
[1673915249222,1.7657343,21253.0,21252.0,0.16119016]
[1673915249471,1.80419597,21253.0,21252.0,0.16119016]
[1673915249729,1.48409297,21253.0,21252.0,0.16119016]
[1673915250045,1.80419597,21253.0,21252.0,0.16119016]
[1673915250258,1.48409297,21253.0,21252.0,0.16119016]
[1673915250498,1.80419597,21253.0,21252.0,0.16119016]
[1673915250746,1.48409297,21253.0,21252.0,0.16119016]
[1673915251002,1.01357197,21253.0,21252.0,0.16119016]
[1673915251256,1.33367709,21253.0,21252.0,0.16119016]
[1673915251510,1.01357409,21253.0,21252.0,0.16119016]
[1673915251756,0.90462257,21253.0,21252.0,0.16119016]
[1673915252001,1.01308883,21253.0,21252.0,0.16119016]
[1673915252258,1.33319183,21253.0,21252.0,0.16119016]
[1673915253016,1.61014887,21253.0,21252.0,0.16119016]
[1673915253278,2.10862169,21253.0,21252.0,0.16119016]
[1673915253536,2.40862169,21253.0,21252.0,0.16119016]
[1673915253797,2.10862169,21253.0,21252.0,0.16119016]
[1673915254339,2.40862169,21253.0,21252.0,0.16119016]
[1673915254600,2.70175004,21253.0,21252.0,0.16119016]
[1673915254856,2.47682887,21253.0,21252.0,0.1434209]
[1673915255855,2.40582887,21253.0,21252.0,0.1414209]
[1673915256113,2.49582887,21253.0,21252.0,0.1414209]
[1673915258194,1.99114887,21253.0,21252.0,0.1414209]
[1673915258442,2.00434887,21253.0,21252.0,0.1414209]
[1673915259448,2.48030537,21253.0,21252.0,0.1414209]
[1673915259698,2.00434887,21253.0,21252.0,0.1414209]
[1673915260672,2.73049076,21253.0,21252.0,0.1414209]
[1673915261910,2.89192693,21253.0,21252.0,0.1414209]
[1673915262408,2.89192693,21253.0,21252.0,0.09471024]
[1673915263441,0.09471,21252.0,21247.0,0.3]
[1673915263704,0.85980909,21248.0,21247.0,0.22835]
[1673915263956,3.40911548,21248.0,21247.0,0.22835]
[1673915264740,3.40911548,21248.0,21247.0,5e-05]
[1673915265003,3.12311548,21248.0,21247.0,5e-05]
[1673915265320,2.79230639,21248.0,21247.0,5e-05]
[1673915265516,3.66046767,21248.0,21247.0,5e-05]
[1673915266499,3.58506767,21248.0,21247.0,5e-05]
[1673915267018,1.93777439,21248.0,21247.0,0.19077595]
[1673915267271,1.74347456,21248.0,21247.0,5e-05]
[1673915267525,1.70527945,21248.0,21247.0,5e-05]
[1673915268055,1.93915361,21248.0,21247.0,5e-05]
[1673915268288,2.07991859,21248.0,21247.0,5e-05]
[1673915268548,2.08841859,21248.0,21247.0,5e-05]
[1673915268801,1.85454443,21248.0,21247.0,5e-05]
[1673915270435,1.71374828,21248.0,21247.0,5e-05]
[1673915270641,0.092,21248.0,21247.0,0.26617595]
[1673915270885,0.092,21248.0,21247.0,0.07545]
[1673915271934,0.82249359,21249.0,21247.0,0.07545]
[1673915272181,0.084,21248.0,21247.0,0.07645]
[1673915273492,0.084,21248.0,21247.0,0.00105]
[1673915274303,0.22473112,21248.0,21247.0,0.00105]
[1673915274572,1.58953924,21248.0,21247.0,0.00105]
[1673915274822,2.06867124,21248.0,21247.0,0.00105]
[1673915275111,1.92794012,21248.0,21247.0,0.00105]
[1673915275668,2.20947008,21248.0,21247.0,0.00105]
[1673915275947,2.47876264,21248.0,21247.0,0.00105]
[1673915276199,1.82683047,21248.0,21247.0,0.00105]
[1673915276466,2.17864764,21248.0,21247.0,0.00105]
[1673915276716,2.46009523,21248.0,21247.0,0.00105]
[1673915277259,2.07364024,21248.0,21247.0,0.00105]
[1673915277527,2.46011484,21248.0,21247.0,0.00105]
[1673915277775,1.9657416,21248.0,21247.0,0.00105]
[1673915278570,1.84632353,21248.0,21247.0,0.00105]
[1673915278824,2.02174269,21248.0,21247.0,0.00105]
[1673915279074,2.02174408,21248.0,21247.0,0.00105]
[1673915279867,2.02174441,21248.0,21247.0,0.00105]
[1673915280373,1.84631524,21248.0,21247.0,0.00105]
[1673915280637,1.98139635,21248.0,21247.0,0.00105]
[1673915281162,2.19243337,21248.0,21247.0,0.00105]
[1673915281457,1.84631382,21248.0,21247.0,0.00105]
[1673915281710,1.56490402,21248.0,21247.0,0.00105]
[1673915282507,1.66990346,21248.0,21247.0,0.00105]
[1673915283293,2.02172063,21248.0,21247.0,0.00105]
[1673915283604,2.11571191,21248.0,21247.0,0.00105]
[1673915284421,2.42041485,21248.0,21247.0,0.00105]
[1673915284927,2.12041485,21248.0,21247.0,0.00105]
[1673915285746,2.42041485,21248.0,21247.0,0.00105]
[1673915286303,2.06856583,21248.0,21247.0,0.00105]
[1673915286822,1.46389474,21248.0,21247.0,0.00105]
[1673915287074,1.81582792,21248.0,21247.0,0.00105]
[1673915288106,1.68849474,21248.0,21247.0,0.00105]
[1673915288355,1.38849474,21248.0,21247.0,0.00105]
[1673915289126,1.38849474,21248.0,21247.0,0.00097085]
[1673915290212,1.74053848,21248.0,21247.0,0.00097085]
[1673915290484,1.38849474,21248.0,21247.0,0.00097085]
[1673915290744,2.02233541,21248.0,21247.0,0.00097085]
[1673915291004,1.35009409,21248.0,21247.0,0.00097085]
[1673915291265,1.52675602,21248.0,21247.0,0.00097085]
[1673915291820,1.31546635,21248.0,21247.0,0.00097085]
[1673915292091,1.24505423,21248.0,21247.0,0.00097085]
[1673915292357,0.84483435,21248.0,21247.0,0.00097085]
[1673915292613,1.2319984,21248.0,21247.0,0.00097085]
[1673915292923,1.42092805,21248.0,21247.0,0.00097085]
[1673915293182,1.64849518,21248.0,21247.0,0.00097085]
[1673915293439,2.37130427,21248.0,21247.0,0.00097085]
[1673915297013,2.07130427,21248.0,21247.0,0.00097085]
[1673915297766,2.37130427,21248.0,21247.0,0.00097085]
[1673915298257,2.14670427,21248.0,21247.0,0.00097085]
[1673915298815,1.88710182,21248.0,21247.0,0.00097085]
[1673915299081,1.81170182,21248.0,21247.0,0.00097085]
[1673915299330,1.06878973,21248.0,21247.0,0.00097085]
[1673915299572,1.38889273,21248.0,21247.0,0.00097085]
[1673915300304,0.91826073,21248.0,21247.0,0.00097085]
[1673915300553,0.95076438,21248.0,21247.0,0.00097085]
[1673915301066,0.59815773,21248.0,21247.0,0.00097085]
[1673915301331,0.91826073,21248.0,21247.0,0.00097085]
[1673915301595,1.38889273,21248.0,21247.0,0.00097085]
[1673915303723,0.59815773,21248.0,21247.0,0.00097085]
[1673915304200,0.95076539,21248.0,21247.0,0.00097085]
[1673915306026,1.23284389,21248.0,21247.0,0.00097085]
[1673915306288,1.23284389,21248.0,21247.0,0.07437085]
[1673915306289,0.75371189,21248.0,21247.0,0.07437085]
[1673915306557,0.57764857,21248.0,21247.0,0.14927085]
[1673915306822,0.22504094,21248.0,21247.0,0.14927085]
[1673915307587,0.14104094,21248.0,21247.0,0.1483]
[1673915307839,0.21804094,21248.0,21247.0,0.0759]
[1673915308094,0.35261101,21249.0,21247.0,0.0749]